bitfinex/quotes_SOLUSD_20260202
["timestamp","ask_amount","ask_price","bid_price","bid_amount"]
[1770040794912,8.96410536,103.57,103.53,1.67184263]
[1770040796184,26.84,103.62,103.53,1.67184263]
[1770040796185,8.96410536,103.56,103.53,1.67184263]
[1770040796689,0.28432314,103.59,103.49,0.2]
[1770040796690,8.96410536,103.54,103.49,1.87184263]
[1770040796894,8.96410536,103.51,103.49,1.87184263]
[1770040797506,8.96410536,103.52,103.49,1.87184263]
[1770040797819,8.96410536,103.51,103.49,1.87184263]
[1770040798486,8.96410536,103.52,103.49,1.87184263]
[1770040798890,8.96410536,103.52,103.47,18.62829076]
[1770040798891,8.96410536,103.5,103.46,1.87184263]
[1770040799092,8.96410536,103.47,103.46,0.2]
[1770040800501,8.96410536,103.47,103.44,1.67184263]
[1770040800814,8.96410536,103.46,103.43,1.87184263]
[1770040801401,4.55959399,103.49,103.43,1.87184263]
[1770040801402,8.96410536,103.45,103.43,1.87184263]
[1770040802700,8.96410536,103.44,103.41,1.87184263]
[1770040802909,8.96410536,103.42,103.41,0.2]
[1770040803205,8.96410536,103.43,103.41,1.87184263]
[1770040803601,0.28432314,103.48,103.41,1.87184263]
[1770040803818,8.96410536,103.44,103.41,1.87184263]
[1770040804313,8.96410536,103.45,103.41,1.87184263]
[1770040804616,8.96410536,103.46,103.42,1.67184263]
[1770040805004,8.96410536,103.47,103.43,1.67184263]
[1770040805318,8.96410536,103.46,103.43,1.67184263]
[1770040806410,4.27527085,103.49,103.43,1.67184263]
[1770040806613,8.96410536,103.47,103.43,1.67184263]
[1770040806912,8.96410536,103.46,103.43,1.67184263]
[1770040808421,8.96410536,103.48,103.44,1.67184263]
[1770040808719,8.96410536,103.47,103.44,1.67184263]
[1770040808899,4.55959399,103.49,103.44,1.67184263]
[1770040809099,8.96410536,103.45,103.41,0.2]
[1770040809301,8.96410536,103.45,103.42,1.67184263]
[1770040810198,8.96410536,103.46,103.42,1.67184263]
[1770040810825,8.96410536,103.45,103.42,1.67184263]
[1770040811124,8.96410536,103.43,103.41,0.2]
[1770040811322,8.96410536,103.43,103.41,1.87184263]
[1770040812011,8.96410536,103.42,103.41,0.2]
[1770040812416,8.96410536,103.43,103.41,1.87184263]
[1770040812619,8.96410536,103.42,103.41,1.87184263]
[1770040813222,8.96410536,103.43,103.41,1.87184263]
[1770040814599,8.96410536,103.45,103.41,1.87184263]
[1770040814819,8.96410536,103.46,103.41,1.87184263]
[1770040815121,8.96410536,103.46,103.42,1.67184263]
[1770040815821,8.96410536,103.46,103.43,1.67184263]
[1770040817023,4.27527085,103.48,103.41,1.87184263]
[1770040817024,8.96410536,103.45,103.41,1.87184263]
[1770040817319,8.96410536,103.43,103.41,0.2]
[1770040818116,8.96410536,103.43,103.41,1.87184263]
[1770040818622,8.96410536,103.43,103.41,0.2]
[1770040819909,8.96410536,103.43,103.41,1.87184263]
[1770040820609,0.14216157,103.47,103.41,1.87184263]
[1770040820828,4.27527085,103.48,103.43,1.67184263]
[1770040821031,13.23937621,103.48,103.44,1.67184263]
[1770040823434,8.96410536,103.48,103.44,1.67184263]
[1770040823607,8.96410536,103.49,103.45,1.67184263]
[1770040824742,8.96410536,103.5,103.46,1.67184263]
[1770040824910,0.14216157,103.53,103.46,1.67184263]
[1770040825112,8.96410536,103.51,103.47,1.67184263]
[1770040825410,8.96410536,103.5,103.47,1.67184263]
[1770040825608,8.96410536,103.51,103.47,1.67184263]
[1770040825825,8.96410536,103.52,103.48,1.67184263]
[1770040826421,8.96410536,103.51,103.48,1.67184263]
[1770040827640,8.96410536,103.5,103.48,1.67184263]
[1770040827835,8.96410536,103.49,103.46,1.67184263]
[1770040828029,8.96410536,103.48,103.46,1.67184263]
[1770040828345,8.96410536,103.47,103.44,1.67184263]
[1770040828831,8.96410536,103.48,103.44,1.67184263]
[1770040829135,4.27527085,103.51,103.45,1.67184263]
[1770040829136,8.96410536,103.49,103.45,1.67184263]
[1770040831834,8.96410536,103.49,103.46,1.67184263]
[1770040832129,5.05273638,103.53,103.47,1.67184263]
[1770040832328,31.13527085,103.54,103.48,1.67184263]
[1770040832636,14.03470707,103.55,103.51,1.67184263]
[1770040832937,8.9835248,103.55,103.51,1.67184263]
[1770040833348,0.28432314,103.56,103.52,1.67184263]
[1770040833349,8.9835248,103.56,103.52,1.67184263]
[1770040834148,8.9835248,103.55,103.52,1.67184263]
[1770040834328,8.9835248,103.56,103.52,1.67184263]
[1770040834731,8.9835248,103.56,103.53,1.67184263]
[1770040834933,8.9835248,103.56,103.52,1.67184263]
[1770040834934,8.9835248,103.55,103.52,1.67184263]
[1770040835139,8.9835248,103.55,103.5,8.9835248]
[1770040835140,8.9835248,103.54,103.5,1.67184263]
[1770040835342,8.9835248,103.53,103.5,1.67184263]
[1770040835540,0.28432314,103.56,103.5,1.67184263]
[1770040835541,8.9835248,103.54,103.51,1.67184263]
[1770040837036,8.9835248,103.52,103.48,1.67184263]
[1770040837341,8.9835248,103.51,103.48,1.67184263]
[1770040839642,8.9835248,103.53,103.48,8.9835248]
[1770040839824,8.9835248,103.53,103.49,1.67184263]
[1770040840145,8.9835248,103.52,103.49,1.67184263]
[1770040840442,8.9835248,103.51,103.49,1.67184263]
[1770040840922,8.9835248,103.5,103.47,1.67184263]
[1770040841124,8.9835248,103.48,103.45,1.67184263]
[1770040842042,0.28432314,103.52,103.45,1.67184263]
[1770040842234,8.9835248,103.49,103.45,1.67184263]
[1770040843030,8.9835248,103.52,103.46,1.67184263]
[1770040843230,8.9835248,103.49,103.47,1.67184263]
[1770040846521,8.9835248,103.5,103.47,1.67184263]
[1770040847447,8.9835248,103.49,103.47,1.67184263]
[1770040847744,8.9835248,103.49,103.46,1.67184263]
[1770040848331,8.9835248,103.5,103.46,1.67184263]
[1770040848631,0.28432314,103.52,103.46,1.67184263]
[1770040848632,8.9835248,103.49,103.46,1.67184263]
[1770040849043,8.9835248,103.5,103.46,1.67184263]
[1770040849244,0.28432314,103.52,103.47,1.67184263]
[1770040849547,8.9835248,103.52,103.48,1.67184263]
[1770040850530,8.9835248,103.52,103.49,1.67184263]
[1770040853146,8.9835248,103.51,103.49,1.67184263]
[1770040853739,8.9835248,103.52,103.49,1.67184263]
[1770040854560,0.28432314,103.53,103.47,1.67184263]
[1770040854561,8.9835248,103.5,103.47,1.67184263]
[1770040855862,8.9835248,103.49,103.46,1.67184263]
[1770040856957,8.9835248,103.48,103.46,1.67184263]
[1770040857159,8.9835248,103.49,103.46,1.67184263]
[1770040859368,8.9835248,103.48,103.46,1.67184263]
[1770040859761,8.9835248,103.48,103.44,8.9835248]
[1770040860063,8.9835248,103.53,103.41,1.87184263]
[1770040860064,8.9835248,103.45,103.41,1.87184263]
[1770040860272,0.28432314,103.46,103.42,1.67184263]
[1770040860448,8.9835248,103.47,103.42,1.67184263]
[1770040860753,8.9835248,103.47,103.43,1.67184263]
[1770040860945,8.9835248,103.45,103.43,1.67184263]
[1770040861140,8.9835248,103.44,103.42,1.67184263]
[1770040861341,8.9835248,103.43,103.41,0.2]
[1770040861646,8.9835248,103.44,103.41,1.87184263]
[1770040861862,9.26784794,103.46,103.42,1.67184263]
[1770040862184,8.9835248,103.45,103.43,1.67184263]
[1770040862545,8.9835248,103.44,103.41,1.87184263]
[1770040863264,0.28432314,103.46,103.42,1.67184263]
[1770040863265,8.9835248,103.46,103.42,1.67184263]
[1770040863565,8.9835248,103.46,103.43,1.67184263]
[1770040865065,8.9835248,103.45,103.42,1.67184263]
[1770040865246,8.9835248,103.46,103.42,1.67184263]
[1770040865445,8.9835248,103.46,103.43,1.67184263]
[1770040865665,8.9835248,103.49,103.45,1.67184263]
[1770040865851,8.9835248,103.49,103.46,1.67184263]
[1770040866950,8.9835248,103.5,103.46,1.67184263]
[1770040867155,8.9835248,103.49,103.46,1.67184263]
[1770040867865,8.9835248,103.47,103.43,1.67184263]
[1770040868648,8.9835248,103.48,103.44,1.67184263]
[1770040868949,8.9835248,103.47,103.44,1.67184263]
[1770040871476,8.9835248,103.46,103.44,1.67184263]
[1770040872145,8.9835248,103.48,103.44,1.67184263]
[1770040872766,8.9835248,103.49,103.45,1.67184263]
[1770040873071,8.9835248,103.48,103.45,1.67184263]
[1770040874177,8.9835248,103.49,103.45,1.67184263]
[1770040874552,8.9835248,103.49,103.46,1.67184263]
[1770040877571,8.9835248,103.5,103.46,1.67184263]
[1770040877870,8.9835248,103.49,103.46,1.67184263]
[1770040879763,8.9835248,103.48,103.45,1.67184263]
[1770040882375,0.28432314,103.48,103.45,1.67184263]
[1770040882574,8.9835248,103.48,103.45,1.67184263]
[1770040883258,8.9835248,103.47,103.44,63.47184263]
[1770040883564,8.9835248,103.46,103.44,63.47184263]
[1770040883764,8.9835248,103.47,103.44,1.67184263]
[1770040884272,8.9835248,103.46,103.44,1.67184263]
[1770040884581,8.9835248,103.45,103.41,1.87184263]
[1770040884774,8.9835248,103.43,103.41,1.87184263]
[1770040885666,8.9835248,103.44,103.41,1.87184263]
[1770040885870,8.9835248,103.45,103.41,1.87184263]
[1770040886280,8.9835248,103.44,103.41,1.87184263]
[1770040886462,8.9835248,103.45,103.41,1.87184263]
[1770040886991,8.9835248,103.44,103.41,1.87184263]
[1770040887289,8.9835248,103.42,103.41,0.2]
[1770040887983,8.9835248,103.43,103.41,0.2]
[1770040888372,8.9835248,103.43,103.41,1.87184263]
[1770040888691,8.9835248,103.44,103.41,1.87184263]
[1770040892368,8.9835248,103.43,103.41,1.87184263]
[1770040893175,8.9835248,103.44,103.41,1.87184263]
[1770040893395,8.9835248,103.45,103.41,1.87184263]
[1770040893893,8.9835248,103.47,103.43,1.67184263]
[1770040894396,8.99276676,103.47,103.43,1.67184263]
[1770040894599,0.28432314,103.46,103.43,1.67184263]
[1770040894802,9.2770899,103.46,103.43,1.67184263]
[1770040894977,26.86,103.48,103.44,1.67184263]
[1770040895177,8.99276676,103.47,103.44,1.67184263]
[1770040896099,35.85276676,103.48,103.44,1.67184263]
[1770040896687,26.86,103.48,103.44,1.67184263]
[1770040896888,8.99276676,103.47,103.44,1.67184263]
[1770040898497,9.13492833,103.48,103.44,1.67184263]
[1770040898703,8.99276676,103.47,103.44,1.67184263]
[1770040900307,8.99276676,103.48,103.44,1.67184263]
[1770040900703,9.13492833,103.49,103.45,1.67184263]
[1770040902386,8.99276676,103.47,103.45,1.67184263]
[1770040902791,0.28432314,103.49,103.45,1.67184263]
[1770040903092,8.99276676,103.48,103.45,1.67184263]
[1770040903708,9.2770899,103.49,103.45,1.67184263]
[1770040903888,9.13492833,103.51,103.47,1.67184263]
[1770040904208,8.99276676,103.51,103.47,1.67184263]
[1770040905004,8.99276676,103.52,103.48,1.67184263]
[1770040905306,0.28432314,103.53,103.48,1.67184263]
[1770040905506,8.99276676,103.51,103.48,1.67184263]
[1770040906307,0.28432314,103.53,103.48,1.67184263]
[1770040906308,8.99276676,103.52,103.48,1.67184263]
[1770040906495,4.27527085,103.54,103.48,1.67184263]
[1770040906699,8.99276676,103.52,103.48,1.67184263]
[1770040908009,8.99276676,103.51,103.48,1.67184263]
[1770040908392,8.99276676,103.5,103.48,1.67184263]
[1770040910007,0.28432314,103.53,103.48,1.67184263]
[1770040910206,8.99276676,103.5,103.48,1.67184263]
[1770040911001,0.28432314,103.53,103.48,1.67184263]
[1770040911217,8.99276676,103.5,103.48,1.67184263]
[1770040911392,8.99276676,103.49,103.45,1.67184263]
[1770040911593,8.99276676,103.48,103.45,1.67184263]
[1770040912519,8.99276676,103.49,103.45,1.67184263]
[1770040912821,8.99276676,103.5,103.45,8.99276676]
[1770040913025,8.99276676,103.5,103.46,1.67184263]
[1770040914320,8.99276676,103.49,103.46,1.67184263]
[1770040915002,0.28432314,103.51,103.46,1.67184263]
[1770040915199,8.99276676,103.5,103.46,1.67184263]
[1770040916501,3.59461439,103.5,103.46,1.67184263]
[1770040917028,3.59461439,103.49,103.46,1.67184263]
[1770040918231,0.28432314,103.51,103.46,1.67184263]
[1770040918413,3.59461439,103.49,103.46,1.67184263]
[1770040918834,3.59461439,103.48,103.46,1.67184263]
[1770040921435,3.59461439,103.47,103.44,1.67184263]
[1770040921637,3.59461439,103.45,103.42,1.67184263]
[1770040922446,3.59461439,103.44,103.42,1.67184263]
[1770040923830,3.59461439,103.43,103.42,1.67184263]
[1770040924439,3.59461439,103.43,103.41,1.87184263]
[1770040924644,3.59461439,103.42,103.39,1.67184263]
[1770040924936,3.59461439,103.41,103.39,1.67184263]
[1770040925230,3.59461439,103.42,103.39,1.67184263]
[1770040925633,3.59461439,103.41,103.39,1.67184263]
[1770040925820,3.59461439,103.41,103.37,1.67184263]
[1770040926928,3.59461439,103.4,103.37,1.67184263]
[1770040927441,3.59461439,103.41,103.37,1.67184263]
[1770040928655,0.28432314,103.44,103.36,1.67184263]
[1770040928656,3.59461439,103.39,103.36,1.67184263]
[1770040928933,3.59461439,103.4,103.36,1.67184263]
[1770040929313,3.59461439,103.41,103.36,1.67184263]
[1770040929515,3.59461439,103.41,103.37,1.67184263]
[1770040929727,3.59461439,103.4,103.37,1.67184263]
[1770040933818,4.55959399,103.42,103.36,1.67184263]
[1770040934019,3.59461439,103.39,103.36,1.67184263]
[1770040934840,3.59461439,103.38,103.36,1.67184263]
[1770040935247,0.28432314,103.39,103.35,1.87184263]
[1770040935433,3.87893753,103.39,103.35,1.87184263]
[1770040935938,3.59461439,103.38,103.35,1.87184263]
[1770040936123,3.59461439,103.37,103.35,1.87184263]
[1770040936542,3.59461439,103.37,103.35,0.2]
[1770040937539,3.59461439,103.38,103.35,1.87184263]
[1770040937850,3.59461439,103.37,103.35,1.87184263]
[1770040938048,3.59461439,103.38,103.35,1.87184263]
[1770040938548,3.59461439,103.37,103.35,1.87184263]
[1770040938923,0.28432314,103.39,103.35,1.87184263]
[1770040939248,3.59461439,103.38,103.35,1.87184263]
[1770040939926,3.59461439,103.39,103.35,1.87184263]
[1770040941147,3.59461439,103.38,103.35,1.87184263]
[1770040941326,0.28432314,103.39,103.35,1.87184263]
[1770040941532,3.59461439,103.37,103.35,1.87184263]
[1770040941728,3.59461439,103.36,103.34,0.2]
[1770040941954,7.86988524,103.4,103.33,44.60786416]
[1770040941955,3.59461439,103.35,103.33,44.60786416]
[1770040942131,3.59461439,103.35,103.33,42.93602153]
[1770040942637,3.59461439,103.34,103.32,0.2]
[1770040942946,3.59461439,103.34,103.32,1.87184263]
[1770040943837,3.59461439,103.36,103.32,1.87184263]
[1770040944050,3.59461439,103.35,103.32,1.87184263]
[1770040944538,3.59461439,103.34,103.32,1.87184263]
[1770040945552,3.59461439,103.34,103.32,0.2]
[1770040945859,3.59461439,103.33,103.32,0.2]
[1770040946351,3.59461439,103.33,103.32,0.04885076]
[1770040946534,3.59461439,103.33,103.31,1.87184263]
[1770040948461,3.59461439,103.33,103.31,0.2]
[1770040949733,4.55959399,103.35,103.31,1.87184263]
[1770040949938,3.59461439,103.34,103.31,1.87184263]
[1770040950142,3.59461439,103.34,103.31,0.2]
[1770040950353,3.59461439,103.33,103.31,0.2]
[1770040950851,3.59461439,103.34,103.31,1.87184263]
[1770040951770,3.59461439,103.35,103.31,1.87184263]
[1770040951937,83.30998846,103.39,103.32,1.67184263]
[1770040952244,3.59461439,103.36,103.32,1.67184263]
[1770040952448,4.27527085,103.37,103.33,1.67184263]
[1770040952449,3.59461439,103.37,103.33,1.67184263]
[1770040952955,3.59461439,103.4,103.36,1.67184263]
[1770040953253,3.59461439,103.41,103.37,1.67184263]
[1770040953441,3.59461439,103.4,103.37,1.67184263]
[1770040954434,5.05664508,103.45,103.38,1.67184263]
[1770040954657,3.59461439,103.42,103.39,1.67184263]
[1770040954833,3.59461439,103.41,103.37,1.67184263]
[1770040955037,3.59461439,103.4,103.37,1.67184263]
[1770040955355,3.59461439,103.39,103.37,1.67184263]
[1770040956056,3.59461439,103.38,103.35,1.67184263]
[1770040956351,3.60311951,103.38,103.35,1.67184263]
[1770040956555,3.60311951,103.37,103.35,1.67184263]
[1770040957052,3.60311951,103.37,103.33,1.67184263]
[1770040957448,3.60311951,103.35,103.33,1.67184263]
[1770040957951,3.60311951,103.38,103.34,1.67184263]
[1770040958147,3.88744265,103.39,103.34,3.60311951]
[1770040958460,3.60311951,103.38,103.35,1.67184263]
[1770040959340,3.60311951,103.39,103.35,1.67184263]
[1770040960935,4.27527085,103.4,103.35,1.67184263]
[1770040960936,3.60311951,103.38,103.35,1.67184263]
[1770040963667,3.60311951,103.39,103.35,1.67184263]
[1770040964960,3.60311951,103.4,103.36,1.67184263]
[1770040966180,3.60311951,103.38,103.35,1.67184263]
[1770040966466,3.60311951,103.38,103.33,61.8]
[1770040966467,3.60311951,103.37,103.33,1.67184263]
[1770040967042,3.60311951,103.36,103.33,1.67184263]
[1770040969051,3.60311951,103.35,103.33,1.67184263]
[1770040969365,3.60311951,103.34,103.32,1.67184263]
[1770040969743,20.54216157,103.39,103.32,1.67184263]
[1770040969744,3.60311951,103.35,103.32,1.67184263]
[1770040971361,3.60311951,103.34,103.32,1.67184263]
[1770040972870,3.60311951,103.33,103.32,1.67184263]
[1770040973074,4.27527085,103.36,103.32,1.67184263]
[1770040973075,3.60311951,103.34,103.32,1.67184263]
[1770040973970,3.60311951,103.34,103.31,1.87184263]
[1770040974278,3.60311951,103.33,103.31,1.87184263]
[1770040974482,3.88744265,103.35,80.378,3.22206696]
[1770040974684,3.60311951,103.33,103.28,3.60311951]
[1770040976080,3.60311951,103.34,103.29,3.60311951]
[1770040976481,3.60311951,103.34,103.3,0.83592132]
[1770040978087,3.88744265,103.35,103.31,0.83592132]
[1770040978277,3.60311951,103.36,103.32,0.83592132]
[1770040979974,3.60311951,103.34,103.29,0.83592132]
[1770040980170,3.60311951,103.34,103.3,0.83592132]
[1770040981591,3.60311951,103.33,103.3,0.83592132]
[1770040981780,3.60311951,103.31,103.28,0.83592132]
[1770040981982,3.60311951,103.32,103.28,0.83592132]
[1770040982593,3.60311951,103.31,103.28,0.83592132]
[1770040985995,3.60311951,103.32,103.28,0.83592132]
[1770040986194,3.60311951,103.31,103.28,0.83592132]
[1770040986577,3.60311951,103.32,103.28,0.83592132]
[1770040987093,0.14216157,103.34,103.28,0.83592132]
[1770040987298,3.60311951,103.35,103.31,0.83592132]
[1770040987478,3.60311951,103.36,103.32,0.80451642]
[1770040987682,3.60311951,103.37,103.32,3.60311951]
[1770040987881,3.60311951,103.36,103.31,3.60311951]
[1770040988192,3.60311951,103.36,103.31,65.40311951]
[1770040988375,4.27527085,103.38,103.31,61.8]
[1770040988376,3.60311951,103.35,103.31,61.8]
[1770040988576,3.60311951,103.33,103.28,30.50311951]
[1770040988882,3.60311951,103.33,103.28,65.40311951]
[1770040989190,0.28432314,103.37,103.3,3.60311951]
[1770040989385,3.60311951,103.35,103.31,0.82021887]
[1770040989581,4.55959399,103.37,103.32,0.82021887]
[1770040989582,3.60311951,103.36,103.32,0.82021887]
[1770040990877,3.60311951,103.35,103.32,0.82021887]
[1770040991301,3.60311951,103.34,103.31,0.82021887]
[1770040991502,4.27527085,103.37,103.31,0.82021887]
[1770040991503,3.60311951,103.33,103.31,0.82021887]
[1770040992408,3.60311951,103.34,103.31,0.82021887]
[1770040992906,3.60311951,103.35,103.31,0.82021887]
[1770040993312,4.55959399,103.36,103.31,0.82021887]
[1770040993313,3.60311951,103.36,103.32,0.82021887]
[1770040994177,4.55959399,103.37,103.32,0.82021887]
[1770040994404,3.60311951,103.34,103.32,0.82021887]
[1770040994905,0.28432314,103.36,103.32,0.82021887]
[1770040995082,3.60311951,103.35,103.32,0.82021887]
[1770040995412,3.60311951,103.36,103.32,0.82021887]
[1770040997199,3.60311951,103.37,103.33,0.82021887]
[1770040997779,3.60311951,103.38,103.33,0.82021887]
[1770040997998,7.87839036,103.38,103.34,0.82021887]
[1770040998200,3.60311951,103.38,103.35,0.82021887]
[1770040998422,0.2,103.46,103.38,0.82021887]
[1770040998584,3.60311951,103.42,103.38,0.82021887]
[1770040998785,3.60311951,103.41,103.38,0.82021887]
[1770040999402,3.60311951,103.42,103.38,0.82021887]
[1770041001115,3.60311951,103.41,103.38,0.82021887]
[1770041001616,3.60311951,103.4,103.37,0.82021887]
[1770041001791,3.60311951,103.39,103.37,0.82021887]
[1770041001996,3.60311951,103.4,103.37,0.82021887]
[1770041002696,3.74528108,103.41,103.37,0.82021887]
[1770041003011,3.60311951,103.4,103.37,0.82021887]
[1770041003208,3.74528108,103.41,103.37,0.82021887]
[1770041003511,3.60311951,103.41,103.37,0.82021887]
[1770041003713,3.60311951,103.42,103.38,0.82021887]
[1770041004817,3.60311951,103.4,103.38,0.82021887]
[1770041005117,3.60311951,103.41,103.38,0.82021887]
[1770041006519,3.60311951,103.39,103.36,0.82021887]
[1770041006813,3.60311951,103.38,103.36,0.82021887]
[1770041007400,3.60311951,103.39,103.36,0.82021887]
[1770041008531,9.00489112,103.39,103.36,0.82021887]
[1770041008734,9.00489112,103.38,103.36,0.82021887]
[1770041009226,9.00489112,103.38,103.34,0.82021887]
[1770041010413,9.00489112,103.39,103.35,0.82021887]
[1770041010633,9.00489112,103.37,103.34,0.82021887]
[1770041016557,9.00489112,103.36,103.33,0.82021887]
[1770041016721,9.00489112,103.35,103.33,0.82021887]
[1770041017423,9.00489112,103.36,103.33,0.82021887]
[1770041018337,9.00489112,103.35,103.32,0.82021887]
[1770041018535,9.01295057,103.35,103.32,0.82021887]
[1770041019141,9.01295057,103.34,103.32,0.82021887]
[1770041019646,9.01295057,103.35,103.32,0.82021887]
[1770041021141,9.01295057,103.34,103.32,0.82021887]
[1770041021640,9.01295057,103.33,103.28,0.82021887]
[1770041021825,9.01295057,103.33,103.29,0.82021887]
[1770041022025,9.01295057,103.34,103.3,0.82021887]
[1770041023142,9.01295057,103.35,103.31,0.82021887]
[1770041023324,9.01295057,103.34,103.31,0.82021887]
[1770041024045,9.01295057,103.33,103.31,0.82021887]
[1770041024848,9.01295057,103.32,103.31,0.82021887]
[1770041025244,9.01295057,103.32,103.3,0.82021887]
[1770041026539,0.28432314,103.36,103.28,0.82021887]
[1770041026540,9.01295057,103.31,103.28,0.82021887]
[1770041028151,9.01295057,103.33,103.29,0.82021887]
[1770041028344,9.29727371,103.34,103.29,9.01295057]
[1770041028533,9.29727371,103.34,103.3,0.82021887]
[1770041028851,9.01295057,103.35,103.31,0.82021887]
[1770041029450,9.29727371,103.36,103.32,0.82021887]
[1770041029668,9.01295057,103.36,103.32,0.82021887]
[1770041030556,3.60331904,103.38,103.34,0.82021887]
[1770041031636,3.60331904,103.39,103.35,0.82021887]
[1770041032735,3.60331904,103.38,103.35,0.82021887]
[1770041033651,3.60331904,103.39,103.35,0.82021887]
[1770041034659,7.87858989,103.41,103.37,0.82021887]
[1770041036462,8.16291303,103.42,103.38,0.82021887]
[1770041036641,31.95676404,103.45,103.39,0.82021887]
[1770041036837,3.60331904,103.43,103.39,0.82021887]
[1770041037246,3.60331904,103.41,103.38,0.82021887]
[1770041038344,3.60331904,103.4,103.37,0.82021887]
[1770041040870,3.60331904,103.39,103.37,0.82021887]
[1770041041168,3.60331904,103.38,103.35,0.82021887]
[1770041041466,3.60331904,103.37,103.34,0.82021887]
[1770041041840,3.60331904,103.36,103.34,0.82021887]
[1770041042251,3.60331904,103.35,103.33,0.82021887]
[1770041042453,3.60331904,103.35,103.32,0.82021887]
[1770041043138,3.88764218,103.38,103.34,0.82021887]
[1770041043864,3.60331904,103.38,103.34,0.82021887]
[1770041047471,3.60331904,103.39,103.35,0.82021887]
[1770041047762,3.60331904,103.4,103.36,0.82021887]
[1770041048960,3.60331904,103.39,103.36,0.82021887]
[1770041049343,3.60331904,103.39,103.34,65.40331904]
[1770041049344,3.60331904,103.38,103.35,0.82021887]
[1770041050669,3.60331904,103.38,103.34,61.8]
[1770041050974,3.60331904,103.37,103.34,62.62021887]
[1770041051871,3.60331904,103.37,103.35,0.82021887]
[1770041055377,0.28432314,103.39,103.35,0.82021887]
[1770041055561,3.88764218,103.39,103.35,0.82021887]
[1770041056561,8.16291303,103.39,103.35,0.82021887]
[1770041057079,3.60331904,103.38,103.35,0.82021887]
[1770041058974,8.16291303,103.39,103.35,0.82021887]
[1770041059275,3.88764218,103.4,103.36,0.82021887]
[1770041059658,3.74548061,103.4,103.36,0.82021887]
[1770041060057,3.60331904,103.39,103.36,0.82021887]
[1770041060887,3.74548061,103.4,103.36,0.82021887]
[1770041061962,7.87858989,103.42,103.38,0.82021887]
[1770041062157,3.60331904,103.41,103.38,0.82021887]
[1770041062363,3.60331904,103.4,103.38,0.82021887]
[1770041063978,3.88764218,103.41,103.38,0.82021887]
[1770041066065,3.60331904,103.4,103.38,0.82021887]
[1770041066263,3.60331904,103.39,103.35,62.62021887]
[1770041066464,3.60331904,103.36,103.34,0.82021887]
[1770041067369,3.60331904,103.36,103.32,0.82021887]
[1770041069969,0.28432314,103.38,103.32,0.82021887]
[1770041069970,3.60331904,103.35,103.32,0.82021887]
[1770041072875,3.60331904,103.35,103.3,0.82021887]
[1770041073079,3.60331904,103.32,103.3,0.82021887]
[1770041075184,4.55959399,103.34,103.27,61.8]
[1770041075185,3.60331904,103.31,103.27,61.8]
[1770041075389,3.60331904,103.3,103.27,61.8]
[1770041075969,3.60331904,103.31,103.27,61.8]
[1770041077278,3.60331904,103.31,103.28,0.49057761]
[1770041078492,3.60794845,103.31,103.28,0.49057761]
[1770041078695,3.60794845,103.31,103.26,31.85605575]
[1770041078696,3.60794845,103.29,103.26,31.85605575]
[1770041078994,3.60794845,103.3,103.26,31.85605575]
[1770041078995,3.60794845,103.28,103.26,31.85605575]
[1770041079170,4.45505198,103.3,103.27,0.49057761]
[1770041079171,3.60794845,103.29,103.27,0.49057761]
[1770041079572,3.60794845,103.28,103.27,0.49057761]
[1770041080192,3.60794845,103.28,103.26,31.36547814]
[1770041080411,3.60794845,103.27,103.26,31.36547814]
[1770041080574,3.89227159,103.29,103.24,3.70794845]
[1770041080902,3.60794845,103.29,103.24,3.70794845]
[1770041081076,4.08259066,103.29,103.24,3.70794845]
[1770041081776,3.60794845,103.28,103.24,3.70794845]
[1770041082200,3.60794845,103.28,103.25,0.49057761]
[1770041083590,4.08259066,103.29,103.25,0.49057761]
[1770041085103,3.60794845,103.28,103.25,0.49057761]
[1770041085404,4.08259066,103.29,103.25,0.49057761]
[1770041085704,4.08259066,103.3,103.26,0.49057761]
[1770041086001,3.60794845,103.31,103.27,0.49057761]
[1770041087306,4.08259066,103.31,103.27,0.49057761]
[1770041088004,4.071364,103.3,103.27,0.49057761]
[1770041088200,3.60794845,103.3,103.27,0.49057761]
[1770041089690,3.60794845,103.29,103.27,0.49057761]
[1770041089889,4.071364,103.3,103.27,0.49057761]
[1770041091508,3.60794845,103.29,103.27,0.49057761]
[1770041092196,4.071364,103.3,103.27,0.49057761]
[1770041092389,3.60794845,103.3,103.27,0.49057761]
[1770041094206,0.4777517,103.31,103.27,0.49057761]
[1770041094509,4.08570015,103.3,103.27,0.49057761]
[1770041095707,3.60794845,103.29,103.27,0.49057761]
[1770041096006,4.08570015,103.3,103.27,0.49057761]
[1770041096406,4.08570015,103.29,103.26,0.45979599]
[1770041096581,0.4777517,103.3,103.26,0.45979599]
[1770041096783,3.60794845,103.29,103.26,0.45979599]
[1770041097383,0.28432314,103.32,103.25,62.25979599]
[1770041097384,4.08570015,103.28,103.25,62.25979599]
[1770041097602,4.08570015,103.29,103.26,0.45979599]
[1770041098109,4.08570015,103.31,103.27,0.45979599]
[1770041098509,3.60794845,103.3,103.27,0.45979599]
[1770041098686,4.08570015,103.3,103.27,0.45979599]
[1770041099586,0.4777517,103.3,103.27,0.45979599]
[1770041099806,4.08570015,103.3,103.27,0.45979599]